bitfinex/quotes_ETHUSD_20250110
["timestamp","ask_amount","ask_price","bid_price","bid_amount"]
[1736529984281,1e-05,3286.0,3285.9,3.3068]
[1736529984916,1e-05,3286.0,3285.9,3.2993]
[1736529985485,1e-05,3286.0,3285.9,3.3068]
[1736529985680,1e-05,3286.0,3285.9,3.92311206]
[1736529986115,1e-05,3286.0,3285.9,3.65961206]
[1736529986626,1e-05,3286.0,3285.9,3.66711206]
[1736529987643,1e-05,3286.0,3285.9,4.48111206]
[1736529988181,3.01784248,3286.2,3286.1,3.04312]
[1736529988601,3.01784248,3286.2,3286.1,3.07354708]
[1736529989084,3.01784248,3286.2,3286.1,3.04312]
[1736529990841,3.01784248,3286.2,3286.0,0.256]
[1736529991001,3.31962673,3286.2,3286.0,0.256]
[1736529991184,0.02862424,3286.1,3286.0,0.256]
[1736529991385,0.02862424,3286.1,3286.0,3.29921]
[1736529991616,0.02862424,3286.1,3286.0,3.33713873]
[1736529991786,9e-06,3286.2,3286.1,3.87142]
[1736529992002,0.7998,3287.5,3286.1,4.26766533]
[1736529992341,4.67734488,3289.2,3287.4,3.04191]
[1736529992342,0.7646,3288.3,3287.4,3.04191]
[1736529992549,3.8057,3288.3,3287.5,0.256]
[1736529992839,2.24177662,3289.2,3287.2,0.03041481]
[1736529992840,0.7646,3287.9,3287.2,0.03041481]
[1736529993005,0.02697981,3287.8,3287.2,3.04209]
[1736529993339,0.02697981,3287.8,3287.2,3.07243534]
[1736529993538,0.02697981,3287.8,3287.2,3.04202]
[1736529993744,0.02697981,3287.8,3286.9,3.0423]
[1736529993943,0.7646,3287.9,3286.9,3.2983]
[1736529994126,0.02684488,3287.7,3286.9,3.29837]
[1736529994325,0.7646,3287.7,3286.9,3.29837]
[1736529994635,0.02676787,3287.6,3286.9,0.256]
[1736529994838,0.7646,3287.5,3286.9,0.256]
[1736529995005,0.02661384,3287.4,3286.7,0.256]
[1736529995224,3.43111037,3288.1,3286.1,0.0075]
[1736529995225,0.7646,3287.3,3286.3,3.04291]
[1736529995537,0.02698076,3287.2,3286.4,3.29882]
[1736529995716,0.02698076,3287.2,3286.4,0.256]
[1736529996032,0.7646,3287.1,3286.4,0.256]
[1736529996337,0.380671,3287.0,3286.3,0.60356385]
[1736529996561,0.02946981,3287.0,3286.2,3.299]
[1736529996769,0.8098,3286.9,3286.2,0.256]
[1736529996936,0.8098,3286.9,3286.0,0.61489895]
[1736529997141,0.8098,3286.3,3285.7,0.256]
[1736529997344,0.8098,3286.3,3285.5,3.04366]
[1736529997554,0.8098,3286.3,3285.7,0.60567469]
[1736529998077,0.8098,3286.3,3285.4,0.256]
[1736529998425,3.04322,3286.0,3285.3,0.256]
[1736529998854,0.7785,3285.8,3285.1,0.60817295]
[1736529999060,3.0436,3285.6,3284.9,0.256]
[1736529999274,3.04369,3285.5,3284.9,0.256]
[1736529999584,0.7785,3285.8,3284.9,0.256]
[1736529999761,3.8219,3285.8,3284.9,0.256]
[1736529999927,0.38219,3285.7,3284.9,0.28643909]
[1736530000127,0.38219,3285.7,3284.9,0.256]
[1736530000335,0.38219,3285.7,3284.9,0.03043909]
[1736530000851,3.42569,3285.7,3284.8,3.64956816]
[1736530001062,0.7919,3285.6,3284.9,0.03043908]
[1736530001590,0.7919,3286.1,3285.6,3.04357]
[1736530001791,0.7919,3286.1,3285.1,0.0075]
[1736530001936,3.83502,3286.1,3285.0,3.04411]
[1736530002136,0.383502,3286.0,3284.8,3.64950816]
[1736530002360,0.7919,3286.1,3285.2,3.04386]
[1736530002583,0.7919,3286.1,3285.3,3.04384]
[1736530003186,0.7919,3286.1,3285.5,3.04366]
[1736530003372,0.7919,3286.1,3285.7,3.04345]
[1736530003749,0.7919,3286.1,3285.6,0.03043218]
[1736530003750,0.7919,3286.1,3285.8,0.03043166]
[1736530003950,0.7919,3286.1,3285.7,0.03043073]
[1736530004238,0.7919,3286.1,3285.7,0.28643058]
[1736530004439,0.7919,3286.1,3285.7,3.32991058]
[1736530005188,0.7919,3286.1,3285.8,3.04338]
[1736530005370,0.7919,3286.1,3285.7,0.256]
[1736530006139,1.175384,3286.1,3285.7,0.256]
[1736530006505,0.7919,3286.1,3285.7,0.256]
[1736530006783,0.7919,3286.1,3285.7,3.29949]
[1736530007099,0.7919,3286.1,3285.7,0.256]
[1736530007383,0.7919,3286.1,3285.5,3.04363]
[1736530007589,0.7919,3286.1,3285.2,3.04394]
[1736530007827,0.3835,3286.0,3285.2,3.04394]
[1736530008003,0.3835,3286.0,3285.3,3.07425436]
[1736530008290,0.7919,3286.1,3285.3,0.03043436]
[1736530008638,0.7919,3286.1,3285.4,3.04373]
[1736530009086,0.7919,3286.1,3285.5,0.03043149]
[1736530009255,0.7919,3286.1,3285.7,3.04347]
[1736530009446,0.7919,3286.1,3285.5,3.04364]
[1736530010148,0.7919,3286.1,3285.6,3.04349]
[1736530010948,0.7919,3286.1,3285.7,0.0304315]
[1736530011144,0.7919,3286.1,3285.6,3.04355]
[1736530011549,0.7919,3286.1,3285.6,3.04358]
[1736530011754,0.7919,3286.1,3285.7,0.03043151]
[1736530011961,0.8209,3286.6,3285.7,3.04348]
[1736530012162,3.86359,3286.6,3285.7,3.04348]
[1736530012385,0.386359,3286.5,3285.5,3.04365]
[1736530012902,0.386359,3286.5,3285.7,3.04347]
[1736530013758,0.386359,3286.5,3285.8,0.03043151]
[1736530014116,0.8209,3286.6,3285.5,0.0075]
[1736530014308,3.43111037,3287.3,3285.9,0.0075]
[1736530014513,0.63057,3288.2,3286.0,0.8316]
[1736530014514,0.7764,3287.2,3286.0,0.8316]
[1736530014654,0.7764,3287.2,3286.1,0.28642493]
[1736530014857,0.782,3287.6,3286.3,3.0429]
[1736530015185,0.782,3287.2,3286.0,0.8316]
[1736530015425,0.782,3287.2,3286.3,3.04292]
[1736530015614,0.782,3287.2,3286.7,3.04255]
[1736530015755,0.782,3287.2,3286.5,3.04272]
[1736530015955,0.782,3287.2,3286.6,3.07303317]
[1736530016155,0.782,3287.2,3286.6,0.03042317]
[1736530016355,0.782,3287.2,3286.5,3.04275]
[1736530016597,0.782,3287.2,3286.4,0.7869]
[1736530016804,0.782,3287.2,3286.5,0.03042253]
[1736530016978,0.782,3287.2,3286.8,3.04244]
[1736530017178,0.782,3287.2,3286.5,0.03042253]
[1736530017384,0.782,3287.2,3286.9,3.0423]
[1736530017700,0.782,3287.2,3286.4,0.7869]
[1736530017888,0.782,3287.2,3286.5,0.03042244]
[1736530018221,0.782,3287.2,3286.8,3.04238]
[1736530018568,0.782,3287.2,3286.6,3.04258]
[1736530018919,0.782,3287.2,3286.8,3.04244]
[1736530019742,0.42131104,3287.6,3287.1,3.04215]
[1736530019906,0.7692,3287.8,3287.3,3.042]
[1736530020241,0.7692,3287.8,3287.2,3.0724676]
[1736530020590,0.7692,3287.8,3286.7,0.59736777]
[1736530020793,0.7607,3287.6,3286.7,3.29854]
[1736530020988,0.7538,3287.4,3286.7,3.29854]
[1736530021243,3.43111037,3287.3,3286.7,0.256]
[1736530021423,0.7538,3287.4,3286.7,0.256]
[1736530021631,0.7538,3287.4,3287.3,3.04201]
[1736530021788,0.7538,3288.0,3287.4,3.04187]
[1736530021990,0.41849104,3287.9,3287.4,3.04187]
[1736530022304,0.41849104,3287.9,3287.0,3.04225]
[1736530022626,0.41849104,3287.9,3287.4,3.04188]
[1736530022937,0.41849104,3287.9,3287.1,0.03041696]
[1736530023087,0.7538,3288.0,3287.3,3.042]
[1736530023892,0.7538,3288.0,3287.4,3.0419]
[1736530024191,0.7538,3288.0,3287.6,3.04167]
[1736530024641,0.7538,3288.0,3287.7,3.04158]
[1736530024821,0.7538,3288.0,3287.7,3.04156]
[1736530025457,0.7538,3288.0,3287.7,0.256]
[1736530025891,6.47176037,3288.8,3287.8,0.03041377]
[1736530026092,0.7984,3288.6,3287.8,0.03041377]
[1736530027122,0.7984,3288.6,3287.7,0.256]
[1736530027513,0.7984,3288.6,3287.9,3.04143]
[1736530027814,0.7984,3288.6,3287.7,3.29763]
[1736530028327,0.7984,3288.6,3287.8,3.04151]
[1736530028841,0.7984,3288.6,3287.8,3.04154]
[1736530029039,0.7984,3288.6,3287.7,3.29759]
[1736530029040,0.7984,3288.6,3287.9,0.03041205]
[1736530029345,0.7984,3288.6,3288.3,3.04107]
[1736530029541,0.8294,3289.1,3288.2,3.04116]
[1736530029708,0.8294,3289.1,3288.3,3.07146733]
[1736530029912,0.8294,3289.1,3288.3,3.04106]
[1736530030237,0.8294,3289.1,3288.0,0.7743]
[1736530030439,0.8294,3289.1,3288.7,3.04063]
[1736530030939,0.8294,3289.1,3288.6,3.04076]
[1736530031242,0.8294,3289.1,3288.7,0.256]
[1736530033053,0.8294,3289.1,3288.8,3.07094492]
[1736530033252,0.8294,3289.1,3288.7,0.256]
[1736530036214,0.8294,3289.1,3288.5,0.256]
[1736530036435,3.86974,3289.1,3288.5,0.256]
[1736530036647,3.86974,3289.1,3288.2,0.5943797]
[1736530036648,3.86976,3289.1,3288.2,0.5943797]
[1736530036848,3.86976,3289.1,3288.1,0.256]
[1736530036849,1.216376,3289.1,3288.1,0.256]
[1736530037029,3.04069,3288.8,3288.1,0.256]
[1736530037205,0.8096,3288.7,3288.1,0.256]
[1736530037404,0.8096,3288.7,3287.6,0.8168]
[1736530037405,3.04081,3288.6,3287.6,3.0417]
[1736530037645,0.8096,3288.7,3287.7,3.29762]
[1736530037901,4.2130378,3288.7,3287.7,3.29762]
[1736530038107,4.2130378,3288.7,3287.8,0.03041225]
[1736530038351,1.1723178,3288.7,3287.8,3.07194225]
[1736530039034,4.2130778,3288.7,3287.8,3.04153]
[1736530039253,3.04081,3288.6,3287.9,0.256]
[1736530039557,0.8096,3288.7,3288.1,3.04126]
[1736530039754,0.8096,3289.1,3288.2,0.03040873]
[1736530039959,0.8096,3289.1,3288.7,3.0407]
[1736530040103,0.8096,3289.1,3288.8,3.04061]
[1736530040450,0.165932,3289.5,3289.0,3.04043]
[1736530040451,0.975532,3289.5,3289.0,3.04043]
[1736530040835,0.975532,3289.5,3288.8,3.04055]
[1736530041152,3.04017,3289.3,3288.6,0.60934692]
[1736530041369,3.04017,3289.3,3287.9,3.04137]
[1736530041370,0.8096,3289.1,3288.7,0.256]
[1736530041503,0.8096,3289.1,3288.3,0.256]
[1736530041854,0.8096,3288.7,3287.9,3.04145]
[1736530042635,0.8096,3288.7,3287.8,0.03041205]
[1736530042951,0.8096,3288.7,3288.0,3.04134]
[1736530043142,0.8096,3288.7,3287.9,0.256]
[1736530043457,1.194623,3288.7,3287.9,0.256]
[1736530043607,4.235373,3288.7,3287.9,0.256]
[1736530043804,1.194623,3288.7,3287.9,0.256]
[1736530044205,4.235353,3288.7,3287.9,0.256]
[1736530044410,1.194623,3288.7,3287.9,0.256]
[1736530044720,0.8096,3289.3,3288.5,3.04087]
[1736530045320,0.8096,3289.3,3288.6,0.03040741]
[1736530045551,0.8096,3289.3,3288.7,3.04068]
[1736530045960,0.8096,3289.3,3288.5,3.04081]
[1736530046283,0.8096,3289.3,3288.6,3.04073]
[1736530046584,3.84979,3289.3,3288.5,0.256]
[1736530046809,6.83984581,3289.2,3288.5,0.256]
[1736530047585,3.79957581,3289.2,3288.5,0.256]
[1736530048172,6.83984581,3289.2,3288.5,0.256]
[1736530048376,1.3618,3289.1,3288.1,3.04124]
[1736530048696,0.769,3288.7,3287.7,3.29762]
[1736530048845,3.04083,3288.6,3287.7,0.256]
[1736530049247,3.59099,3288.5,3287.7,0.61770983]
[1736530049453,3.80974,3288.7,3287.7,0.61770983]
[1736530049688,4.53217368,3288.7,3287.7,0.61770983]
[1736530049891,1.49143368,3288.7,3287.7,0.87370983]
[1736530050095,1.49143368,3288.7,3288.0,3.04133]
[1736530050096,0.769,3288.7,3288.0,3.04133]
[1736530050805,0.769,3288.7,3287.8,3.07193293]
[1736530051159,0.769,3288.7,3287.9,3.04143]
[1736530051942,0.769,3288.7,3288.0,3.04132]
[1736530052252,0.769,3288.7,3288.2,3.04115]
[1736530052397,0.769,3288.7,3288.3,3.04105]
[1736530052602,0.769,3288.7,3287.7,3.29762]
[1736530052814,0.769,3288.7,3288.1,3.04119]
[1736530053025,0.769,3288.7,3288.2,3.04116]
[1736530053345,0.769,3288.7,3287.9,3.6593943]
[1736530053515,0.769,3288.7,3287.9,0.6180143]
[1736530053925,1.149961,3288.7,3288.1,3.04126]
[1736530054099,0.769,3288.7,3288.3,3.04107]
[1736530054549,0.769,3288.7,3288.4,3.04098]
[1736530054708,0.7914,3289.0,3288.4,3.04098]
[1736530055496,0.165932,3289.5,3288.2,0.03040737]
[1736530055497,0.7914,3289.4,3288.2,0.03040737]
[1736530055696,0.7914,3289.4,3288.8,3.0406]
[1736530055947,0.7914,3289.4,3288.6,3.04076]
[1736530056157,1.1911212,3289.4,3288.7,0.256]
[1736530056504,1.1911212,3289.4,3288.7,3.29671]
[1736530056701,0.7914,3289.4,3288.7,0.256]
[1736530057004,0.7914,3289.4,3289.0,3.04043]
[1736530057144,0.7914,3289.4,3288.9,3.04046]
[1736530058543,0.7914,3289.4,3288.7,3.29668]
[1736530058864,0.7914,3289.4,3288.4,0.256]
[1736530059059,3.04032,3289.2,3288.4,0.256]
[1736530059359,3.04053,3288.9,3288.4,0.256]
[1736530059566,1.108832,3289.1,3287.8,0.7708]
[1736530059567,0.8048,3288.7,3287.8,3.29748]
[1736530059869,0.8048,3288.7,3287.8,0.256]
[1736530060370,0.8048,3288.7,3288.0,0.6041376]
[1736530060553,0.7964,3289.0,3288.4,3.04093]
[1736530060916,0.7964,3289.0,3288.2,3.04112]
[1736530061116,3.84633,3288.8,3287.8,3.29751]
[1736530061371,1.245333,3288.8,3287.8,0.28641156]
[1736530061517,2.81761956,3288.6,3287.7,0.62277329]
[1736530061873,0.8057,3288.7,3287.7,0.87877329]
[1736530062028,0.8057,3288.7,3287.9,3.04144]
[1736530062711,3.04096,3288.5,3287.7,0.87877329]
[1736530062955,0.64085796,3288.4,3287.7,0.87877329]
[1736530063125,0.64085796,3288.4,3287.7,0.62277329]
[1736530063346,2.81761956,3288.0,3287.3,0.256]
[1736530063546,3.04175,3287.6,3286.7,0.62369276]
[1736530063751,2.81761956,3287.4,3286.5,0.256]
[1736530064052,0.805,3287.3,3286.4,0.61796913]
[1736530064219,2.81761956,3287.1,3286.4,0.61796913]
[1736530064564,0.807,3287.0,3286.4,0.61796913]
[1736530064771,0.8106,3287.6,3286.9,3.04238]
[1736530064920,0.8106,3287.6,3286.5,0.8446286]
[1736530065263,0.8106,3288.2,3286.8,0.0075]
[1736530065462,0.36282196,3288.1,3287.1,3.04215]
[1736530065636,3.85178,3288.2,3287.1,3.04215]
[1736530066036,3.85178,3288.2,3287.0,0.256]
[1736530066250,3.85178,3288.2,3287.3,3.042]
[1736530066424,3.85178,3288.2,3287.0,0.86233921]
[1736530066626,3.85178,3288.2,3287.2,3.04209]
[1736530066825,0.385178,3288.1,3287.0,0.86233921]
[1736530067020,0.8106,3288.2,3287.1,0.03041758]
[1736530067227,0.8106,3288.2,3287.2,0.7656]
[1736530067426,0.8106,3288.2,3287.6,3.04166]
[1736530068060,0.8106,3288.2,3287.2,0.7656]
[1736530068289,0.8106,3288.2,3287.6,3.04171]
[1736530069031,0.8106,3288.2,3287.3,0.03041471]
[1736530069234,0.8106,3288.2,3287.4,3.04188]
[1736530069472,0.8106,3288.2,3287.5,3.04178]
[1736530070577,0.8106,3288.2,3287.3,0.256]
[1736530070780,0.8106,3288.2,3287.2,3.04204]
[1736530070781,0.55,3288.1,3287.2,3.0421]
[1736530071078,0.8106,3288.2,3287.3,0.03041898]
[1736530071285,0.8106,3288.2,3287.2,3.04204]
[1736530071442,0.8106,3288.2,3287.4,3.04185]
[1736530072040,0.8106,3288.2,3287.6,3.04167]
[1736530072241,0.8106,3288.2,3287.7,0.03041481]
[1736530072481,0.8106,3288.2,3287.6,3.04166]
[1736530072856,0.8106,3288.2,3287.1,3.04219]
[1736530073050,0.8106,3288.2,3287.6,3.04172]
[1736530073285,0.8106,3288.2,3287.0,0.256]
[1736530073487,0.8106,3288.2,3287.7,3.04162]
[1736530074084,0.8106,3288.2,3287.6,3.64046445]
[1736530074686,0.8106,3288.2,3287.0,0.256]
[1736530074987,0.8106,3288.2,3287.4,3.04186]
[1736530075145,0.8106,3288.2,3287.4,3.64506514]
[1736530075484,0.8106,3288.2,3287.2,3.04206]
[1736530075796,0.7567,3288.0,3287.0,3.04226]
[1736530076503,0.7567,3288.0,3286.9,0.256]
[1736530076504,0.55,3287.9,3286.9,0.256]
[1736530076806,0.7567,3287.8,3286.9,0.86730635]
[1736530076979,0.7567,3287.8,3287.2,3.04207]
[1736530077175,0.7567,3287.8,3287.2,0.0304199]
[1736530077376,0.7567,3287.8,3287.5,3.04178]
[1736530077908,0.7567,3287.8,3287.7,3.04164]
[1736530078203,0.7526,3288.1,3287.8,3.04154]
[1736530078708,0.7526,3288.1,3287.3,0.768]
[1736530078867,0.827,3288.8,3288.0,3.04136]
[1736530079202,0.386756,3288.7,3287.8,3.04149]
[1736530079401,0.55,3288.4,3287.7,0.62373227]
[1736530079811,0.55,3288.4,3287.6,3.04168]
[1736530079990,0.7582,3288.3,3287.6,3.04168]
[1736530080202,0.7582,3288.1,3287.4,0.256]
[1736530080410,0.7582,3287.9,3287.1,3.04214]
[1736530080571,3.96541508,3287.8,3287.0,0.255]
[1736530080769,3.96541508,3287.4,3286.2,0.7769]
[1736530080967,3.96541508,3287.4,3285.6,3.04358]
[1736530080968,0.55,3287.2,3286.3,3.29786]
[1736530081211,0.55,3287.2,3286.3,0.255]
[1736530081413,0.55,3287.2,3286.4,3.04283]
[1736530081569,0.55,3287.2,3286.5,3.04272]
[1736530081768,0.55,3287.2,3286.4,3.04284]
[1736530082037,0.55,3287.2,3286.5,3.04272]
[1736530082223,0.55,3287.2,3286.3,0.86019319]
[1736530082224,0.7582,3287.3,3286.8,3.04246]
[1736530082368,0.7582,3287.3,3287.1,3.04219]
[1736530082571,0.7582,3287.3,3287.1,3.04216]
[1736530082825,0.7582,3287.3,3286.7,3.04256]
[1736530082982,0.7582,3287.3,3286.9,3.0423]
[1736530083745,0.7774,3288.1,3287.5,3.04174]
[1736530084013,0.7774,3288.1,3287.0,0.03042212]
[1736530084014,0.7774,3288.1,3287.6,3.04172]
[1736530084973,0.7774,3288.1,3287.7,3.04157]
[1736530085312,0.7774,3288.1,3287.9,3.04136]
[1736530085614,0.7774,3288.1,3287.4,3.29684]
[1736530085918,0.7774,3288.1,3287.7,3.04156]
[1736530086267,0.7774,3288.1,3287.8,3.04153]
[1736530087340,0.7774,3288.1,3288.0,3.04136]
[1736530087506,0.7774,3288.1,3287.8,3.04153]
[1736530087714,0.7774,3288.1,3287.6,3.65352161]
[1736530087924,0.7774,3288.1,3287.4,3.29689]
[1736530088096,0.7774,3288.1,3287.5,3.04174]
[1736530088826,0.55,3287.8,3287.0,0.255]
[1736530089027,0.55,3287.6,3287.0,0.255]
[1736530089437,0.7669,3287.5,3287.0,0.255]
[1736530090871,0.55,3287.4,3286.1,0.8214]
[1736530091009,0.55,3287.4,3285.6,6.04353]
[1736530091010,3.04199,3287.4,3286.4,0.87390767]
[1736530091210,0.55,3287.2,3286.4,3.66171767]
[1736530091811,3.59211,3287.2,3286.1,3.04303]
[1736530092124,0.55,3287.0,3286.0,0.255]
[1736530092310,3.04151,3287.9,3286.4,0.7712]
[1736530092311,3.04145,3287.9,3286.4,0.7712]
[1736530092510,0.756,3287.5,3287.0,3.04228]
[1736530092741,0.756,3287.5,3287.2,3.04206]
[1736530093243,0.756,3287.5,3286.7,0.03042008]
[1736530093445,0.756,3287.5,3287.0,3.0422]
[1736530093644,0.756,3287.5,3286.7,0.03042008]
[1736530093805,0.756,3287.5,3287.4,3.04191]
[1736530094006,0.756,3287.5,3287.2,3.04207]
[1736530094605,0.756,3287.5,3287.3,3.04199]
[1736530095402,0.756,3287.5,3287.0,0.255]
[1736530095652,0.8155,3287.3,3286.2,0.255]
[1736530095954,0.8155,3287.3,3286.4,3.0428]
[1736530096105,0.8155,3287.2,3286.4,3.0428]
[1736530096300,0.8155,3287.2,3286.5,3.04274]
[1736530096502,0.8155,3287.2,3286.3,0.86612464]
[1736530096702,0.8155,3287.2,3286.6,3.04264]
[1736530097133,0.8155,3287.2,3286.8,3.04246]
[1736530097759,0.8155,3287.2,3286.9,3.04234]
[1736530098305,0.8268,3287.8,3287.0,3.0422]
[1736530098952,1.1914038,3287.8,3287.0,3.0422]
[1736530100104,0.8268,3287.8,3286.8,3.07283027]
[1736530100504,0.8268,3287.8,3287.3,3.042]
[1736530101007,0.8268,3287.8,3287.0,0.63063869]
[1736530101204,0.8268,3287.8,3287.6,3.04171]
[1736530101419,0.8268,3287.8,3287.4,3.04188]
[1736530101838,0.8268,3287.8,3287.3,0.255]
[1736530102038,0.8268,3287.8,3287.5,3.04173]
[1736530102236,0.8268,3287.8,3287.3,0.255]
[1736530102439,0.8268,3287.8,3287.3,3.29698]
[1736530102611,0.8268,3287.8,3287.4,3.04188]
[1736530103010,0.8268,3287.8,3287.3,0.255]
[1736530105933,0.8268,3287.8,3287.3,3.297]
[1736530106277,0.8268,3287.8,3287.3,0.255]
[1736530106788,0.8268,3287.8,3287.4,3.04186]
[1736530106941,0.8268,3287.8,3287.3,0.255]
[1736530107281,0.8268,3287.8,3287.5,3.0418]
[1736530108585,0.8268,3287.8,3287.7,3.04164]
[1736530109239,0.8268,3287.8,3287.0,0.60021931]
[1736530109480,0.8268,3287.8,3286.9,3.04235]
[1736530109786,1.213627,3287.8,3287.0,3.04221]
[1736530110077,0.8268,3287.8,3287.0,3.04221]
[1736530110282,3.04114,3288.3,3285.5,3.40124642]
[1736530110283,0.767,3287.4,3285.5,3.40124642]
[1736530110509,0.55,3287.3,3286.4,0.255]
[1736530110640,0.55,3287.3,3285.5,3.40124642]
[1736530110641,0.8155,3286.8,3285.6,1.0849]
[1736530110836,0.8155,3286.8,3285.7,0.60800622]
[1736530110837,0.8155,3286.6,3285.7,0.60800622]
[1736530111098,0.55,3286.5,3285.6,0.255]
[1736530111298,0.8155,3286.4,3285.6,0.255]
[1736530111497,0.8155,3286.4,3285.7,3.04347]
[1736530111884,0.8155,3286.4,3285.6,0.255]
[1736530112044,0.8155,3286.4,3286.0,3.04314]
[1736530112542,0.8155,3286.4,3286.1,3.04302]
[1736530112742,0.8155,3286.4,3286.2,3.04294]
[1736530114346,0.8155,3286.4,3286.0,3.04319]
[1736530114746,0.8155,3286.4,3285.8,0.61750918]
[1736530116186,0.55,3287.0,3286.1,3.04304]
[1736530116348,3.59228,3287.0,3286.1,3.04304]
[1736530116548,0.7853,3286.7,3286.1,3.04304]
[1736530116773,0.7853,3286.7,3285.8,1.66913966]
[1736530116981,0.7853,3286.7,3285.9,3.04326]
[1736530117182,0.7853,3286.7,3286.0,3.0432]
[1736530117416,0.7853,3286.7,3285.8,3.91586918]
[1736530117708,0.7853,3286.7,3286.2,3.043]
[1736530117866,0.55,3286.6,3285.8,0.61750918]
[1736530118069,0.7853,3286.5,3285.8,0.61750918]
[1736530118581,0.7853,3286.5,3286.0,3.04312]
[1736530118910,0.7853,3286.5,3285.9,3.0433]
[1736530119080,0.7853,3286.5,3285.8,0.255]
[1736530119411,0.7853,3286.3,3285.6,0.61410484]
[1736530119610,0.7836,3286.1,3285.6,0.61410484]
[1736530119906,1.221256,3286.1,3285.6,0.61410484]
[1736530120114,0.7836,3286.1,3285.6,0.61410484]
[1736530120316,0.7836,3286.4,3285.7,0.84053297]
[1736530120511,3.41643314,3287.3,3286.4,3.04281]
[1736530120512,0.7836,3287.2,3286.4,3.04281]
[1736530120697,0.55,3287.1,3286.2,3.043]
[1736530120869,0.7836,3287.0,3286.2,3.043]
[1736530121071,0.7836,3286.9,3285.8,3.04339]
[1736530121266,0.7836,3286.9,3285.7,3.85355]
[1736530121267,1.166189,3286.9,3285.7,3.85355]
[1736530121501,1.166189,3286.9,3286.2,3.04301]
[1736530121697,1.166189,3286.9,3285.8,0.03042854]
[1736530121906,0.7836,3286.9,3285.8,0.03042854]
[1736530122108,0.7836,3286.9,3285.9,3.0433]
[1736530122317,0.7836,3286.9,3286.3,3.04291]
[1736530123079,0.7836,3286.9,3286.1,3.04304]
[1736530123627,0.7836,3286.9,3286.1,3.04305]
[1736530123797,0.7836,3286.9,3286.2,3.04301]
[1736530123996,1.44826133,3286.9,3286.2,3.04301]
[1736530124841,0.55,3286.5,3285.5,3.29864]
[1736530125164,0.55,3286.3,3285.5,3.29864]
[1736530125498,0.55,3286.3,3285.6,3.04358]
[1736530126399,0.8034,3286.2,3285.5,0.86329503]
[1736530126598,0.55,3286.0,3285.5,0.60829503]
[1736530126803,0.55,3285.8,3284.8,0.255]
[1736530126997,0.55,3285.8,3285.1,3.04403]
[1736530127250,0.989665,3285.8,3285.1,3.04403]
[1736530127462,0.989665,3285.8,3284.8,0.255]
[1736530127661,0.989665,3285.8,3285.0,3.04413]
[1736530127862,0.8247,3285.7,3285.0,3.04413]
[1736530128941,0.8247,3285.7,3284.9,0.62127508]
[1736530129113,0.1814365,3285.6,3284.9,0.62127508]
[1736530130358,0.7914,3285.5,3284.5,0.255]
[1736530130668,0.7914,3285.5,3284.5,0.28544132]
[1736530130967,0.7914,3285.5,3284.6,0.59726504]
[1736530131265,0.7914,3285.5,3284.7,3.04438]
[1736530131470,1.19304165,3285.5,3284.7,3.04438]
[1736530131671,0.55,3285.4,3284.6,0.59726504]
[1736530131822,0.55,3285.4,3284.5,3.04458]
[1736530132020,0.55,3285.0,3283.8,0.7567]
[1736530132421,0.55,3285.0,3284.2,0.61817649]
[1736530132422,0.55,3284.8,3284.2,0.61817649]
[1736530132592,0.55,3284.8,3284.2,3.66304649]
[1736530133025,0.53,3284.8,3284.2,3.66304649]
[1736530133226,0.7996,3284.9,3284.3,0.03044818]
[1736530133431,0.7996,3285.7,3284.7,3.04433]
[1736530133666,0.66638033,3285.6,3284.7,3.04433]
[1736530133997,0.8305,3285.4,3284.5,3.04457]
[1736530134206,0.8305,3285.3,3284.2,0.61817649]
[1736530134348,0.8305,3285.1,3284.2,0.61817649]
[1736530134546,3.04408,3285.1,3284.2,0.61817649]
[1736530134794,0.8305,3284.9,3284.2,0.61817649]
[1736530135390,0.55,3284.8,3284.0,3.04503]
[1736530135595,0.8305,3284.9,3284.7,3.04438]
[1736530136002,0.8305,3284.9,3284.1,3.65484619]
[1736530136161,0.8305,3284.9,3284.4,3.04467]
[1736530136710,0.8305,3284.9,3284.1,0.60988619]
[1736530136848,0.8305,3284.9,3284.3,3.04478]
[1736530137044,0.7854,3285.3,3284.5,3.0521]
[1736530137275,0.7854,3286.5,3285.5,3.04359]
[1736530137471,0.60817936,3286.9,3285.2,3.04388]
[1736530137472,0.7854,3286.3,3285.2,3.04388]
[1736530137680,0.55,3286.1,3285.0,3.04413]
[1736530137882,0.55,3285.9,3285.1,0.03043695]
[1736530138088,0.8127,3286.0,3285.5,3.04361]
[1736530138272,0.8127,3286.0,3285.6,3.04357]
[1736530140193,0.8127,3286.0,3285.9,3.0433]
[1736530140398,3.04199,3287.4,3285.9,3.0433]
[1736530140399,0.8139,3286.9,3286.3,3.04293]
[1736530140577,0.8139,3286.9,3286.6,3.04259]
[1736530140894,0.8139,3286.9,3286.8,3.04247]
[1736530141092,0.7668,3287.5,3287.3,3.04193]
[1736530141292,0.7668,3287.5,3286.7,0.64207948]
[1736530141452,0.7668,3287.5,3287.1,3.04216]
[1736530141655,0.7668,3287.5,3286.8,0.03042126]
[1736530142080,0.7668,3287.5,3287.4,3.04191]
[1736530143468,0.7168,3287.5,3287.4,3.04191]
[1736530143683,6.41604089,3288.3,3287.0,3.04228]
[1736530144007,0.64160409,3288.2,3287.2,0.8016]
[1736530144313,3.41604089,3288.7,3287.9,3.0414]